bitfinex-derivatives/quotes_BTCF0:USTF0_20241015
["timestamp","ask_amount","ask_price","bid_price","bid_amount"]
[1728990891588,0.076299,65541.0,65536.0,0.0036]
[1728990891788,0.076306,65535.0,65534.0,0.0004]
[1728990892480,1.576306,65535.0,65534.0,0.0004]
[1728990892789,1.5,65535.0,65526.0,0.0004]
[1728990893089,0.256315,65527.0,65526.0,0.0004]
[1728990893788,0.336315,65527.0,65526.0,0.0004]
[1728990896075,0.337315,65527.0,65526.0,0.0004]
[1728990903983,0.076327,65517.0,65516.0,0.04]
[1728990904294,0.076328,65516.0,65515.0,0.0004]
[1728990907198,0.076328,65516.0,65515.0,0.0094]
[1728990910584,1.134248,65516.0,65515.0,1e-06]
[1728990910786,1.134248,65516.0,65507.0,0.0004]
[1728990910787,0.076337,65508.0,65507.0,0.0004]
[1728990910990,0.076337,65508.0,65502.0,0.00016742]
[1728990910991,0.076343,65503.0,65502.0,0.00016742]
[1728990911194,0.076343,65503.0,65497.0,0.0004]
[1728990911195,0.076347,65500.0,65497.0,0.0004]
[1728990911491,0.697149,65498.0,65490.0,0.0004]
[1728990911693,0.076353,65495.0,65490.0,0.0004]
[1728990911902,0.076355,65493.0,65490.0,0.0004]
[1728990912087,0.076357,65491.0,65490.0,0.0004]
[1728990913993,0.076357,65491.0,65490.0,0.0044]
[1728990914597,0.076357,65491.0,65490.0,0.0064]
[1728990915395,1.576357,65491.0,65490.0,0.0064]
[1728990915905,1.756357,65491.0,65490.0,0.0064]
[1728990916099,0.076365,65484.0,65483.0,0.0004]
[1728990916297,0.617165,65484.0,65483.0,0.0004]
[1728990917402,0.617165,65484.0,65483.0,0.0094]
[1728990917698,0.617165,65484.0,65483.0,0.0204]
[1728990917903,0.618165,65484.0,65483.0,0.0204]
[1728990918795,0.3618,65484.0,65483.0,0.135467]
[1728990918992,0.2987,65484.0,65483.0,0.135467]
[1728990920805,0.375065,65484.0,65483.0,0.135467]
[1728990921690,0.375065,65484.0,65483.0,0.0591]
[1728990921896,0.555065,65484.0,65483.0,0.0591]
[1728990922095,0.555065,65484.0,65483.0,0.0204]
[1728990925006,0.375065,65484.0,65483.0,0.096767]
[1728990926007,0.0106,65494.0,65483.0,0.096767]
[1728990926008,0.076347,65501.0,65500.0,0.076346]
[1728990926310,0.076347,65501.0,65500.0,0.0004]
[1728990926999,0.256347,65501.0,65500.0,0.0004]
[1728990927498,0.256347,65501.0,65500.0,0.0014]
[1728990927799,0.263347,65501.0,65500.0,0.0024]
[1728990928115,0.083347,65501.0,65500.0,0.078747]
[1728990929517,0.007,65501.0,65500.0,0.078747]
[1728990931604,0.083346,65501.0,65500.0,0.078747]
[1728990932815,0.007,65501.0,65500.0,0.078747]
[1728990933007,0.083346,65501.0,65500.0,0.078747]
[1728990933311,0.083346,65501.0,65500.0,0.0024]
[1728990934012,0.083346,65501.0,65500.0,0.078747]
[1728990935411,0.007,65501.0,65500.0,0.078747]
[1728990935803,0.437129,65516.0,65500.0,0.078747]
[1728990935804,0.437129,65516.0,65500.0,0.4604]
[1728990936000,0.437129,65516.0,65511.0,0.076334]
[1728990936001,0.076333,65512.0,65511.0,0.076334]
[1728990936201,1.5,65512.0,65511.0,0.076734]
[1728990937016,0.0428,65517.0,65516.0,0.076328]
[1728990937216,0.119127,65517.0,65516.0,0.076728]
[1728990937617,1.619127,65517.0,65516.0,0.076728]
[1728990937917,0.18,65528.0,65516.0,0.0004]
[1728990938103,0.076315,65527.0,65526.0,0.18]
[1728990938304,0.076315,65527.0,65526.0,0.076317]
[1728990938606,1.576315,65527.0,65526.0,0.076317]
[1728990939411,1.576315,65527.0,65526.0,0.256317]
[1728990939412,1.5,65527.0,65526.0,0.256317]
[1728990940014,0.18,65535.0,65526.0,0.181]
[1728990940211,0.07631,65532.0,65531.0,0.07631]
[1728990941416,0.07631,65532.0,65531.0,0.07731]
[1728990942319,0.07631,65532.0,65531.0,0.001]
[1728990943117,0.07631,65532.0,65531.0,0.002]
[1728990943706,0.07631,65532.0,65531.0,0.078311]
[1728990945819,0.07631,65532.0,65531.0,0.002]
[1728990950309,0.25631,65532.0,65531.0,0.002]
[1728990951122,0.07631,65532.0,65531.0,0.002]
[1728990951328,0.0927,65532.0,65531.0,0.078311]
[1728990951624,0.04289588,65532.0,65531.0,0.076311]
[1728990952515,0.11920588,65532.0,65531.0,0.076311]
[1728990952821,0.076311,65531.0,65530.0,0.3608]
[1728990953012,0.11920688,65531.0,65530.0,0.3608]
[1728990953320,0.16817661,65531.0,65530.0,0.3608]
[1728990954213,0.16917661,65531.0,65530.0,0.3618]
[1728990955122,0.07632,65523.0,65511.0,0.0004]
[1728990955428,0.076327,65517.0,65511.0,0.0004]
[1728990955627,0.11922288,65517.0,65511.0,0.0004]
[1728990955924,0.30406905,65517.0,65511.0,0.0004]
[1728990956112,0.076333,65512.0,65511.0,0.0004]
[1728990956314,0.1797597,65512.0,65511.0,0.0004]
[1728990956514,0.22265558,65512.0,65511.0,0.0004]
[1728990957019,0.21940429,65512.0,65511.0,0.0004]
[1728990957631,0.22140429,65512.0,65511.0,0.0004]
[1728990958123,0.078333,65512.0,65511.0,0.0004]
[1728990958331,0.16227887,65512.0,65511.0,0.0074]
[1728990958522,0.16227887,65512.0,65510.0,0.0004]
[1728990958523,0.076334,65511.0,65510.0,0.0004]
[1728990958723,0.256334,65511.0,65510.0,0.0004]
[1728990959730,0.076334,65511.0,65510.0,0.0004]
[1728990960119,0.076334,65511.0,65510.0,0.0014]
[1728990960322,0.079334,65511.0,65510.0,0.078735]
[1728990960723,0.076334,65511.0,65510.0,0.077735]
[1728990960923,0.257334,65511.0,65510.0,0.0014]
[1728990961525,0.257334,65511.0,65510.0,0.0004]
[1728990961732,0.260334,65511.0,65510.0,0.0004]
[1728990962428,0.076341,65505.0,65504.0,0.3608]
[1728990962629,0.256341,65505.0,65504.0,0.3608]
[1728990963424,0.076341,65505.0,65504.0,0.3608]
[1728990963630,0.076341,65505.0,65504.0,0.437142]
[1728990964130,0.076338,65509.0,65508.0,0.076336]
[1728990964326,0.076338,65509.0,65508.0,0.256736]
[1728990964522,0.256338,65509.0,65508.0,0.0004]
[1728990965633,0.257338,65509.0,65508.0,0.0004]
[1728990966229,0.256338,65509.0,65508.0,0.0004]
[1728990966428,0.262338,65509.0,65508.0,0.0014]
[1728990967332,0.265338,65509.0,65508.0,0.0014]
[1728990968136,0.265338,65509.0,65500.0,0.06116167]
[1728990968137,0.5498,65509.0,65500.0,0.06116167]
[1728990968325,0.5498,65509.0,65500.0,0.0004]
[1728990968326,0.256346,65501.0,65500.0,0.0004]
[1728990969538,0.256346,65501.0,65500.0,0.0044]
[1728990970235,0.256346,65501.0,65500.0,0.0014]
[1728990970536,0.256346,65501.0,65500.0,0.0044]
[1728990971422,0.258346,65501.0,65500.0,0.0034]
[1728990971623,0.076353,65495.0,65492.0,0.06076167]
[1728990971826,0.076361,65488.0,65485.0,0.3608]
[1728990972028,0.076371,65479.0,65477.0,0.15592509]
[1728990972231,0.3608,65486.0,65476.0,0.36256]
[1728990972232,0.18,65481.0,65476.0,0.36256]
[1728990972437,0.18,65481.0,65476.0,0.3608]
[1728990972438,0.076374,65477.0,65476.0,0.3608]
[1728990973630,0.256374,65477.0,65476.0,0.3748]
[1728990974024,0.256374,65477.0,65476.0,0.014]
[1728990974025,0.617174,65477.0,65476.0,0.014]
[1728990974433,0.617174,65477.0,65476.0,0.028]
[1728990974434,0.076374,65477.0,65476.0,0.028]
[1728990975031,0.001,65481.0,65476.0,0.208]
[1728990975226,0.076372,65480.0,65479.0,0.07637]
[1728990975431,0.076368,65483.0,65482.0,0.076367]
[1728990975634,0.3608,65486.0,65485.0,0.076364]
[1728990975834,0.437163,65486.0,65485.0,0.076764]
[1728990976128,0.076363,65486.0,65485.0,0.076764]
[1728990976634,0.0036,65492.0,65485.0,0.5412]
[1728990976936,0.076355,65493.0,65491.0,0.256356]
[1728990977135,0.076356,65492.0,65491.0,0.256356]
[1728990977339,0.076356,65492.0,65491.0,0.076356]
[1728990978037,0.076353,65495.0,65494.0,0.076351]
[1728990978341,0.076349,65499.0,65498.0,0.076349]
[1728990978536,0.076349,65499.0,65498.0,0.076749]
[1728990978732,1.5008,65500.0,65499.0,0.076348]
[1728990978932,0.617145,65502.0,65499.0,0.0004]
[1728990979135,0.3608,65502.0,65501.0,0.076746]
[1728990980033,0.18,65505.0,65501.0,0.0004]
[1728990980532,0.076344,65502.0,65501.0,0.0004]
[1728990981132,0.256344,65502.0,65501.0,0.0034]
[1728990981535,0.256344,65502.0,65501.0,0.0004]
[1728990981536,0.617144,65502.0,65501.0,0.0004]
[1728990981741,0.617144,65502.0,65501.0,0.0014]
[1728990982136,1.075144,65502.0,65501.0,0.0014]
[1728990982430,0.617144,65502.0,65501.0,0.0014]
[1728990982633,0.618144,65502.0,65501.0,0.0014]
[1728990983240,0.618144,65502.0,65501.0,0.0004]
[1728990983440,0.618144,65502.0,65499.0,0.0004]
[1728990983441,1.082144,65502.0,65499.0,0.0004]
[1728990983642,0.076347,65500.0,65499.0,0.0004]
[1728990984248,0.076353,65495.0,65489.0,0.0036]
[1728990984438,0.617153,65495.0,65486.0,0.076363]
[1728990984743,0.617153,65495.0,65488.0,0.076361]
[1728990984943,0.617153,65495.0,65485.0,0.15615614]
[1728990985243,0.617153,65495.0,65486.0,0.07579214]
[1728990985446,0.617153,65495.0,65486.0,0.15215514]
[1728990985839,0.617153,65495.0,65486.0,0.07579214]
[1728990986042,0.617153,65495.0,65485.0,0.004]
[1728990986540,0.624153,65495.0,65494.0,0.0014]
[1728990986943,0.617153,65495.0,65494.0,0.0004]
[1728990987143,0.624153,65495.0,65494.0,0.0014]
[1728990987443,0.631153,65495.0,65494.0,0.0024]
[1728990990242,0.090353,65495.0,65494.0,0.0024]
[1728990990443,0.014,65495.0,65494.0,0.078754]
[1728990990652,0.014,65495.0,65494.0,0.258754]
[1728990991766,0.014,65495.0,65494.0,1.316794]
[1728990993250,0.076342,65504.0,65503.0,0.076343]
[1728990993450,0.076342,65504.0,65503.0,0.617543]
[1728990993852,0.076342,65504.0,65503.0,0.256743]
[1728990994550,0.090342,65504.0,65503.0,0.258743]
[1728990994744,0.090342,65504.0,65503.0,0.078743]
[1728990994949,0.090342,65504.0,65503.0,0.0024]
[1728990995345,0.089342,65504.0,65503.0,0.0024]
[1728990996052,0.082342,65504.0,65503.0,0.0014]
[1728991000961,0.443142,65504.0,65503.0,0.0014]
[1728991003454,0.47056291,65504.0,65503.0,0.0014]
[1728991006958,0.10976291,65504.0,65503.0,0.0014]
[1728991007457,0.082342,65504.0,65503.0,0.077743]
[1728991008463,0.082342,65504.0,65503.0,0.0014]
[1728991018863,1.064,65504.0,65498.0,0.07579214]
[1728991019079,0.076353,65495.0,65494.0,0.0004]
[1728991019376,0.2970512,65495.0,65494.0,0.0004]
[1728991019772,0.2970584,65495.0,65494.0,0.0004]
[1728991020669,1.7970584,65495.0,65494.0,0.0004]
[1728991020975,1.7970584,65495.0,65494.0,0.0034]
[1728991021269,1.82432658,65495.0,65494.0,0.0034]
[1728991021877,1.82432658,65495.0,65494.0,0.0084]
[1728991022888,1.7970584,65495.0,65494.0,0.0084]
[1728991023187,1.756353,65495.0,65494.0,0.0084]
[1728991023579,1.7977021,65495.0,65494.0,0.0084]
[1728991023976,1.756353,65495.0,65494.0,0.0084]
[1728991030389,1.936353,65495.0,65494.0,0.05414016]
[1728991030579,1.86,65495.0,65493.0,0.04574016]
[1728991030786,0.076363,65486.0,65485.0,0.0004]
[1728991030981,0.617163,65486.0,65485.0,0.0004]
[1728991032792,0.617163,65486.0,65485.0,0.0024]
[1728991033499,0.437163,65486.0,65485.0,0.0024]
[1728991033792,0.1034646,65486.0,65485.0,0.06337962]
[1728991033987,0.2834646,65486.0,65485.0,0.0024]
[1728991034187,0.076363,65486.0,65485.0,0.0024]
[1728991034692,0.076359,65490.0,65489.0,0.076359]
[1728991034896,1.5038,65495.0,65489.0,0.35249355]
[1728991034897,1.50384,65495.0,65489.0,0.35249355]
[1728991035100,1.50384,65495.0,65494.0,0.076754]
[1728991035101,0.003,65495.0,65494.0,0.076754]
[1728991035304,0.079945,65502.0,65499.0,0.076348]
[1728991035593,0.0107,65508.0,65501.0,0.437146]
[1728991035594,0.076344,65503.0,65501.0,0.437146]
[1728991035787,0.076344,65503.0,65502.0,0.0004]
[1728991035991,0.076344,65503.0,65502.0,0.076744]
[1728991036188,1.50084,65507.0,65503.0,0.076343]
[1728991036189,0.07634,65506.0,65503.0,0.076343]
[1728991036394,0.18,65511.0,65506.0,0.07634]
[1728991036585,0.18,65511.0,65508.0,0.3608]
[1728991036586,0.076336,65509.0,65508.0,0.3608]
[1728991036790,1.576336,65509.0,65508.0,0.3608]
[1728991037391,0.076337,65508.0,65507.0,0.0443]
[1728991037597,0.256337,65508.0,65507.0,0.0443]
[1728991038094,0.256337,65508.0,65507.0,0.1051903]
[1728991038298,0.256337,65508.0,65507.0,0.0443]
[1728991038491,0.256337,65508.0,65507.0,0.10518412]
[1728991038694,0.256337,65508.0,65507.0,0.0443]
[1728991039093,0.256337,65508.0,65507.0,0.10518642]
[1728991039290,0.264337,65508.0,65507.0,0.10718642]
[1728991039894,0.084337,65508.0,65507.0,0.4071]
[1728991040297,0.008,65508.0,65507.0,0.663439]
[1728991040498,0.008,65508.0,65507.0,0.75829602]
[1728991040895,0.008,65508.0,65507.0,0.663439]
[1728991041597,0.008,65508.0,65507.0,0.483439]
[1728991041800,0.084337,65508.0,65507.0,0.483439]
[1728991042101,0.084337,65508.0,65507.0,0.0463]
[1728991042400,0.084337,65508.0,65507.0,0.002]
[1728991043800,0.076343,65503.0,65502.0,0.0004]
[1728991044006,0.256343,65503.0,65502.0,0.0004]
[1728991044298,0.29857362,65503.0,65502.0,0.0004]
[1728991044500,0.076343,65503.0,65502.0,0.0004]
[1728991045802,0.257343,65503.0,65502.0,0.0004]
[1728991046606,0.260343,65503.0,65502.0,0.0004]
[1728991049594,0.080343,65503.0,65502.0,0.0004]
[1728991050996,0.260343,65503.0,65502.0,0.0004]
[1728991052300,0.080343,65503.0,65502.0,0.0004]
[1728991053109,0.004,65503.0,65502.0,0.256744]
[1728991053406,0.004,65503.0,65502.0,0.35849757]
[1728991054909,0.080343,65503.0,65502.0,0.35849757]
[1728991056211,0.080343,65503.0,65502.0,0.297644]
[1728991058512,0.080343,65503.0,65502.0,0.46867357]
[1728991058706,0.080343,65503.0,65502.0,0.46862763]
[1728991059007,0.004,65503.0,65502.0,0.39261293]
[1728991059212,0.437134,65512.0,65511.0,0.076334]
[1728991059513,0.437134,65512.0,65511.0,0.256734]
[1728991059803,0.076331,65514.0,65513.0,0.076332]
[1728991060010,0.079924,65520.0,65513.0,0.076332]
[1728991060011,0.076327,65517.0,65514.0,0.076331]
[1728991060311,0.076322,65522.0,65521.0,0.07632]
[1728991060605,0.076322,65522.0,65521.0,0.0004]
[1728991060808,0.256322,65522.0,65521.0,0.0004]
[1728991062305,0.263322,65522.0,65521.0,0.0014]
[1728991063513,0.263322,65522.0,65521.0,0.0024]
[1728991063815,0.083322,65522.0,65521.0,0.0024]
[1728991064016,0.083322,65522.0,65521.0,0.06322457]
[1728991064311,0.083322,65522.0,65521.0,0.0024]
[1728991066203,0.12663549,65522.0,65521.0,0.0024]
[1728991067114,0.16983549,65522.0,65521.0,0.0024]
[1728991069410,0.083322,65522.0,65521.0,0.078722]
[1728991069616,0.05042838,65522.0,65521.0,0.619522]
[1728991069914,0.007,65522.0,65521.0,0.619522]
[1728991071216,0.083321,65522.0,65521.0,0.619522]
[1728991071521,0.083321,65522.0,65521.0,0.0024]
[1728991072411,1.507,65522.0,65516.0,0.0004]
[1728991072707,0.617127,65517.0,65516.0,0.0004]
[1728991073417,2.117127,65517.0,65516.0,0.0014]
[1728991073615,1.937127,65517.0,65516.0,0.0014]
[1728991073918,1.937127,65517.0,65516.0,0.077728]
[1728991074113,1.937127,65517.0,65516.0,0.257728]
[1728991074307,1.938127,65517.0,65516.0,0.257728]
[1728991075108,2.118127,65517.0,65516.0,0.0024]
[1728991075415,2.126127,65517.0,65516.0,0.0024]
[1728991075816,1.946127,65517.0,65516.0,0.0024]
[1728991078715,2.126127,65517.0,65516.0,0.0024]
[1728991081107,2.306127,65517.0,65516.0,0.0024]
[1728991081313,0.076341,65505.0,65502.0,0.0004]
[1728991081610,0.076343,65503.0,65502.0,0.0004]
[1728991082913,0.079343,65503.0,65502.0,0.0004]
[1728991084013,0.080343,65503.0,65502.0,0.0004]
[1728991084212,0.10817703,65503.0,65502.0,0.0004]
[1728991086031,0.076353,65495.0,65494.0,0.0004]
[1728991086209,0.617153,65495.0,65494.0,0.0004]
[1728991087114,0.617153,65495.0,65494.0,0.0034]
[1728991087716,0.617153,65495.0,65494.0,0.0084]
[1728991088813,2.117153,65495.0,65494.0,0.0084]
[1728991089024,2.117153,65495.0,65485.0,0.06130266]
[1728991089025,0.076363,65486.0,65485.0,0.0004]
[1728991089230,0.617163,65486.0,65485.0,0.0004]
[1728991089721,0.076367,65483.0,65482.0,0.0004]
[1728991090514,0.256367,65483.0,65482.0,0.0004]
[1728991091112,1.756367,65483.0,65482.0,0.0004]
[1728991091312,0.076381,65471.0,65470.0,0.00589106]
[1728991091517,0.076381,65471.0,65470.0,0.00229106]
[1728991092718,0.076381,65471.0,65470.0,0.01]
[1728991092719,0.438181,65471.0,65470.0,0.01]
[1728991093321,1.939181,65471.0,65470.0,0.023]
[1728991094315,1.939181,65471.0,65470.0,0.013]
[1728991094515,1.938181,65471.0,65470.0,0.013]
[1728991094717,1.939181,65471.0,65470.0,0.023]
[1728991095625,1.96732345,65471.0,65470.0,0.023]
[1728991095825,0.46732345,65471.0,65470.0,0.023]
[1728991096726,0.002,65471.0,65470.0,0.203]
[1728991096928,0.078381,65471.0,65470.0,0.023]
[1728991097622,0.121981,65471.0,65470.0,0.023]
[1728991101617,0.301981,65471.0,65470.0,0.023]
[1728991101818,0.121981,65471.0,65470.0,0.023]
[1728991102039,0.301981,65471.0,65470.0,0.023]
[1728991102430,1.801981,65471.0,65470.0,0.023]
[1728991103835,1.621981,65471.0,65470.0,0.023]
[1728991104131,1.801981,65471.0,65470.0,0.023]
[1728991105325,2.860221,65471.0,65470.0,0.023]
[1728991106125,1.621981,65471.0,65470.0,0.023]
[1728991106533,1.620981,65471.0,65470.0,0.013]
[1728991106729,1.620981,65471.0,65470.0,0.015]
[1728991107233,1.577381,65471.0,65470.0,0.015]
[1728991107635,1.576381,65471.0,65470.0,0.002]
[1728991107822,1.576381,65471.0,65470.0,0.004]
[1728991108537,0.076386,65466.0,65465.0,0.0424]
[1728991109028,0.076386,65466.0,65458.0,0.3608]
[1728991109029,0.5408,65468.0,65459.0,0.06090266]
[1728991109232,0.076395,65459.0,65458.0,0.3608]
[1728991110733,0.0764,65454.0,65450.0,0.00172]
[1728991110933,0.18,65451.0,65444.0,0.06090266]
[1728991111128,0.18,65451.0,65443.0,0.3887203]
[1728991111129,0.18,65455.0,65447.0,0.06090266]
[1728991111435,0.076407,65449.0,65447.0,0.13731166]
[1728991111736,0.0036,65458.0,65443.0,0.00172]
[1728991111737,0.076412,65444.0,65443.0,0.00172]
[1728991111929,0.076412,65444.0,65434.0,0.076424]
[1728991111930,0.076422,65436.0,65434.0,0.076424]
[1728991112133,0.617212,65444.0,65431.0,0.07605572]
[1728991112134,0.18,65435.0,65431.0,0.07605572]
[1728991112333,0.076427,65431.0,65430.0,0.23608372]
[1728991112640,0.256427,65431.0,65430.0,0.15965572]
[1728991112837,0.256427,65431.0,65430.0,0.0836]
[1728991113540,0.076434,65425.0,65424.0,0.00172]
[1728991113736,0.076434,65425.0,65416.0,0.07605572]
[1728991113737,0.076439,65421.0,65416.0,0.07605572]
[1728991114033,0.076436,65424.0,65423.0,0.0443]
[1728991115339,0.257436,65424.0,65423.0,0.0473]
[1728991116039,0.337436,65424.0,65423.0,0.003]
[1728991116836,0.337436,65424.0,65423.0,0.013]
[1728991116837,0.338436,65424.0,65423.0,0.013]
[1728991124835,0.337436,65424.0,65423.0,0.013]
[1728991125041,0.338436,65424.0,65423.0,0.013]
[1728991125247,0.337436,65424.0,65423.0,0.003]
[1728991125547,0.338436,65424.0,65423.0,0.012]
[1728991126746,0.338436,65424.0,65412.0,0.0036]
[1728991126747,0.076448,65413.0,65412.0,1e-06]
[1728991126949,0.076462,65401.0,65400.0,1e-06]
[1728991128447,0.077462,65401.0,65400.0,0.003001]
[1728991129045,0.438262,65401.0,65400.0,0.003001]
[1728991129549,0.439262,65401.0,65400.0,0.003001]
[1728991131650,0.439262,65401.0,65400.0,1e-06]
[1728991137953,0.619262,65401.0,65400.0,1e-06]
[1728991138861,1.677982,65401.0,65400.0,1e-06]
[1728991139050,2.119262,65401.0,65400.0,1e-06]
[1728991139260,1.8628,65401.0,65400.0,0.076465]
[1728991139562,1.502,65401.0,65400.0,0.076465]
[1728991139765,1.501,65401.0,65400.0,0.076465]
[1728991139953,0.002,65401.0,65400.0,0.118665]
[1728991140151,0.078462,65401.0,65400.0,0.118665]
[1728991140358,0.03255175,65401.0,65400.0,0.118665]
[1728991140550,0.03255175,65401.0,65400.0,0.19463399]
[1728991140753,0.02820739,65415.0,65409.0,0.076452]
[1728991140953,0.3715,65431.0,65430.0,0.076429]
[1728991141154,0.076426,65433.0,65432.0,0.076426]
[1728991141560,1.937218,65439.0,65429.0,0.07602058]
[1728991141869,0.076427,65431.0,65429.0,0.15244958]
[1728991142162,0.014,65431.0,65429.0,0.07602058]
[1728991142463,0.076431,65428.0,65427.0,0.07602058]
[1728991142661,0.3748,65431.0,65427.0,0.25602058]
[1728991142961,0.07643,65429.0,65428.0,0.09669319]
[1728991143263,0.07643,65429.0,65428.0,0.24919217]
[1728991143465,0.07643,65429.0,65428.0,0.17312419]
[1728991143661,0.076431,65428.0,65427.0,0.25606734]
[1728991143858,0.076431,65428.0,65427.0,0.18]
[1728991144258,0.076431,65428.0,65427.0,0.256432]
[1728991144874,0.3608,65433.0,65427.0,0.18]
[1728991145164,0.076427,65432.0,65431.0,0.076426]
[1728991145362,0.3608,65433.0,65428.0,0.006]
[1728991145575,0.07643,65429.0,65428.0,0.082431]
[1728991145779,0.07643,65429.0,65428.0,0.076431]
[1728991148074,0.003,65429.0,65428.0,0.257431]
[1728991148782,0.003,65429.0,65428.0,0.256431]
[1728991149083,0.003,65429.0,65428.0,0.714951]
[1728991149286,0.437225,65433.0,65432.0,0.076426]
[1728991149475,0.437225,65433.0,65432.0,0.256426]
[1728991149680,0.076425,65433.0,65432.0,0.256426]
[1728991150375,0.076425,65433.0,65432.0,0.076426]
[1728991151179,0.076425,65433.0,65432.0,0.077426]
[1728991151980,1.5,65439.0,65432.0,0.181]
[1728991152184,0.076421,65437.0,65436.0,0.076421]
[1728991152684,0.076425,65434.0,65433.0,0.076424]
[1728991152984,0.076425,65433.0,65432.0,0.001]
[1728991153979,0.078425,65433.0,65432.0,0.001]
[1728991154175,0.07643,65429.0,65428.0,0.076431]
[1728991154485,0.07643,65429.0,65425.0,0.583]
[1728991154486,0.076433,65426.0,65425.0,0.04404]
[1728991154683,0.076433,65426.0,65422.0,0.18]
[1728991154872,0.076443,65418.0,65415.0,0.04558868]
[1728991155079,0.076443,65418.0,65411.0,0.3608]
[1728991155080,0.18,65418.0,65411.0,0.3608]
[1728991155277,0.07645,65414.0,65411.0,0.3608]
[1728991155480,0.07645,65414.0,65411.0,0.43725]
[1728991155481,0.07645,65412.0,65411.0,0.43725]
[1728991155981,0.07645,65412.0,65411.0,0.89589]
[1728991156383,0.3608,65420.0,65411.0,0.3608]
[1728991156582,0.076448,65416.0,65415.0,0.076445]
[1728991157188,0.18,65417.0,65411.0,0.3608]
[1728991157487,0.18,65417.0,65412.0,0.076449]
[1728991157488,0.07645,65413.0,65412.0,0.076449]
[1728991158082,0.07645,65412.0,65411.0,0.3678]
[1728991158280,0.07645,65412.0,65411.0,0.444251]
[1728991158983,0.077448,65413.0,65412.0,0.07645]
[1728991159387,0.077448,65413.0,65411.0,0.36952]
[1728991159388,0.07645,65412.0,65411.0,0.36952]
[1728991159684,0.07645,65412.0,65411.0,0.3678]
[1728991160487,0.07645,65412.0,65411.0,0.624251]
[1728991160688,0.07645,65412.0,65411.0,0.3608]
[1728991160886,0.07745,65412.0,65411.0,0.442251]
[1728991161184,0.07745,65412.0,65411.0,0.3658]
[1728991161581,0.07745,65412.0,65411.0,0.3618]
[1728991161778,0.07745,65412.0,65411.0,0.3658]
[1728991162582,0.07845,65412.0,65411.0,0.3618]
[1728991162986,0.07745,65412.0,65411.0,0.617251]
[1728991163190,0.07745,65412.0,65411.0,0.618251]
[1728991163191,0.001,65412.0,65411.0,0.618251]
[1728991163391,0.076439,65421.0,65411.0,1.676891]
[1728991163689,0.076439,65421.0,65420.0,0.256439]
[1728991164390,0.076439,65421.0,65420.0,0.076439]
[1728991164993,0.076439,65421.0,65418.0,0.3608]
[1728991165194,0.076444,65417.0,65416.0,0.076443]
[1728991166484,0.07645,65413.0,65412.0,0.076447]
[1728991167692,0.079444,65417.0,65416.0,0.076445]
[1728991168298,0.076444,65417.0,65416.0,0.076445]
[1728991168886,0.080444,65417.0,65416.0,0.076445]
[1728991169096,0.080444,65417.0,65416.0,0.256445]
[1728991169097,0.004,65417.0,65416.0,0.256445]
[1728991169398,0.076436,65424.0,65423.0,0.076437]
[1728991169603,0.076429,65430.0,65426.0,0.076431]
[1728991169604,0.076432,65427.0,65426.0,0.076431]
[1728991169799,0.076432,65427.0,65426.0,0.24955899]
[1728991169993,1.576432,65427.0,65426.0,0.24955899]
[1728991170195,0.076432,65427.0,65426.0,0.24955899]
[1728991170492,0.076432,65427.0,65426.0,0.1733355]
[1728991171298,0.087432,65427.0,65426.0,0.15365455]
[1728991171496,0.087432,65427.0,65426.0,0.077431]
[1728991171898,0.096432,65427.0,65426.0,0.1742453]
[1728991172293,0.096432,65427.0,65426.0,0.001]
[1728991173700,0.096432,65427.0,65426.0,0.06199298]
[1728991173897,0.096432,65427.0,65426.0,0.001]
[1728991174907,0.096432,65427.0,65426.0,0.077433]
[1728991175994,0.02,65427.0,65426.0,0.17439428]
[1728991176299,0.02,65427.0,65426.0,0.63291428]
[1728991176504,0.02,65427.0,65426.0,0.535953]
[1728991177398,0.02,65427.0,65426.0,1.398153]
[1728991177603,0.02,65427.0,65426.0,1.47438718]
[1728991177800,0.02,65427.0,65426.0,1.57102498]
[1728991178303,0.3608,65434.0,65426.0,1.47438718]
[1728991178608,0.3608,65434.0,65433.0,0.076425]
[1728991178794,0.3608,65434.0,65433.0,0.24912118]
[1728991178997,0.3608,65434.0,65433.0,1.30760118]
[1728991180202,0.437224,65434.0,65433.0,0.076425]
[1728991181308,0.440224,65434.0,65433.0,0.076425]
[1728991181697,0.444224,65434.0,65433.0,0.076425]
[1728991182099,0.3678,65434.0,65432.0,0.06096255]
[1728991182412,0.076426,65432.0,65431.0,0.06096095]
[1728991182611,0.256426,65432.0,65431.0,0.06096095]
[1728991183714,0.256426,65432.0,65429.0,0.076429]
[1728991183910,0.076429,65430.0,65429.0,0.076429]
[1728991185207,0.076429,65430.0,65429.0,0.078429]
[1728991185412,0.076426,65432.0,65429.0,0.078429]
[1728991185608,0.076426,65432.0,65431.0,0.256427]
[1728991185911,0.076426,65432.0,65431.0,0.076427]
[1728991187015,0.079426,65432.0,65431.0,0.076427]
[1728991188715,0.003,65432.0,65431.0,0.076427]
[1728991188915,0.003,65432.0,65431.0,0.256427]
[1728991191314,0.04417312,65432.0,65431.0,0.256427]
[1728991191518,0.003,65432.0,65431.0,0.256427]
[1728991197222,0.003,65432.0,65431.0,1.314907]
[1728991197519,0.003,65432.0,65431.0,1.39114118]
[1728991197715,0.003,65432.0,65431.0,1.48757401]